[Event "Live Chess"]
[Site "Chess.com"]
[Date "2023.05.20"]
[Round "-"]
[White "1600x"]
[Black "ExIsambard"]
[Result "1-0"]
[WhiteElo "1775"]
[BlackElo "1978"]
[TimeControl "300"]
[EndTime "13:18:48 PDT"]
[Termination "1600x won by resignation"]

1. d4 {[%clk 0:04:46.9]} 1... Nf6 {[%clk 0:04:58.6]} 2. Nc3 {[%clk 0:04:46.8]}
2... e5 {[%clk 0:04:57]} 3. dxe5 {[%clk 0:04:36.2]} 3... Ng4 {[%clk 0:04:55.8]}
4. Bf4 {[%clk 0:04:30.9]} 4... Nc6 {[%clk 0:04:54.1]} 5. Nf3 {[%clk 0:04:17.7]}
5... Bc5 {[%clk 0:04:53.3]} 6. Qd3 {[%clk 0:04:10.2]} 6... Nxf2 {[%clk
0:04:46.8]} 7. Qd5 {[%clk 0:03:58.7]} 7... Bb6 {[%clk 0:04:33.2]} 8. Rg1 {[%clk
0:03:44.7]} 8... Nb4 {[%clk 0:04:21.9]} 9. Qd2 {[%clk 0:03:34.1]} 9... O-O
{[%clk 0:04:05.7]} 10. e3 {[%clk 0:03:29.6]} 10... Ng4 {[%clk 0:04:01.7]} 11.
O-O-O {[%clk 0:03:18.2]} 11... f6 {[%clk 0:03:49.2]} 12. Bc4+ {[%clk 0:03:14.8]}
12... Kh8 {[%clk 0:03:46.6]} 13. exf6 {[%clk 0:03:13.1]} 13... Nxf6 {[%clk
0:03:44]} 14. g4 {[%clk 0:03:10.3]} 14... d6 {[%clk 0:03:19.4]} 15. a3 {[%clk
0:03:07]} 15... Nc6 {[%clk 0:03:15.7]} 16. g5 {[%clk 0:03:00.6]} 16... Nh5
{[%clk 0:03:13.3]} 17. h4 {[%clk 0:02:58.3]} 17... Bf5 {[%clk 0:02:47]} 18. Bd5
{[%clk 0:02:53.8]} 18... Rb8 {[%clk 0:02:28.4]} 19. Nd4 {[%clk 0:02:51.5]} 19...
Nxd4 {[%clk 0:02:24.7]} 20. exd4 {[%clk 0:02:49.8]} 20... Nxf4 {[%clk
0:02:06.1]} 21. Qxf4 {[%clk 0:02:46.1]} 21... Bxc2 {[%clk 0:02:05.2]} 22. Qg3
{[%clk 0:02:44.5]} 22... Bxd1 {[%clk 0:02:03.8]} 23. Rxd1 {[%clk 0:02:43.3]}
23... Qd7 {[%clk 0:01:51.4]} 24. Be4 {[%clk 0:02:37.8]} 24... Rbe8 {[%clk
0:01:44.4]} 25. d5 {[%clk 0:02:33.4]} 25... Qf7 {[%clk 0:01:18.2]} 26. g6 {[%clk
0:02:30.7]} 26... hxg6 {[%clk 0:01:15.2]} 27. Bxg6 {[%clk 0:02:27.6]} 27... Qf4+
{[%clk 0:00:46.7]} 28. Qxf4 {[%clk 0:02:23.1]} 28... Rxf4 {[%clk 0:00:46.3]} 29.
Bxe8 {[%clk 0:02:20.7]} 29... Rxh4 {[%clk 0:00:44.8]} 30. Bg6 {[%clk 0:02:18.1]}
30... Rg4 {[%clk 0:00:42.6]} 31. Bf5 {[%clk 0:02:15.9]} 31... Rg2 {[%clk
0:00:39.8]} 32. Kb1 {[%clk 0:02:14]} 32... a5 {[%clk 0:00:37.3]} 33. Bc8 {[%clk
0:02:11.5]} 33... Bd4 {[%clk 0:00:34.7]} 34. Rxd4 {[%clk 0:02:09.3]} 1-0

[Event "Live Chess"]
[Site "Chess.com"]
[Date "2023.05.20"]
[Round "-"]
[White "DmitryVasliev"]
[Black "JohanKjeldahl"]
[Result "0-1"]
[WhiteElo "1676"]
[BlackElo "1844"]
[TimeControl "300"]
[EndTime "13:18:49 PDT"]
[Termination "JohanKjeldahl won on time"]

1. d4 {[%clk 0:04:58.8]} 1... Nf6 {[%clk 0:04:57.8]} 2. Bf4 {[%clk 0:04:57.6]}
2... d6 {[%clk 0:04:55.9]} 3. e3 {[%clk 0:04:57.2]} 3... g6 {[%clk 0:04:54.1]}
4. h3 {[%clk 0:04:56.8]} 4... Bg7 {[%clk 0:04:53.6]} 5. Bh2 {[%clk 0:04:55.6]}
5... O-O {[%clk 0:04:52.4]} 6. c3 {[%clk 0:04:55.2]} 6... c5 {[%clk 0:04:49.8]}
7. Nf3 {[%clk 0:04:54]} 7... Nc6 {[%clk 0:04:45.8]} 8. Be2 {[%clk 0:04:53]} 8...
cxd4 {[%clk 0:04:39.5]} 9. exd4 {[%clk 0:04:49.5]} 9... Bd7 {[%clk 0:04:37]} 10.
O-O {[%clk 0:04:48.4]} 10... a6 {[%clk 0:04:35.1]} 11. Nbd2 {[%clk 0:04:47.5]}
11... Rc8 {[%clk 0:04:29]} 12. Re1 {[%clk 0:04:37.5]} 12... Qb6 {[%clk
0:04:23.7]} 13. Nc4 {[%clk 0:04:34.3]} 13... Qc7 {[%clk 0:04:16.7]} 14. a4
{[%clk 0:04:33.1]} 14... Be6 {[%clk 0:04:03.2]} 15. Ne3 {[%clk 0:04:31.1]} 15...
Bd7 {[%clk 0:03:52.2]} 16. Bd3 {[%clk 0:04:08.5]} 16... Qd8 {[%clk 0:03:46.5]}
17. b4 {[%clk 0:03:47.9]} 17... d5 {[%clk 0:03:30]} 18. b5 {[%clk 0:03:36.6]}
18... axb5 {[%clk 0:03:29.2]} 19. axb5 {[%clk 0:03:35.7]} 19... Nb8 {[%clk
0:03:28]} 20. Ne5 {[%clk 0:03:34.8]} 20... e6 {[%clk 0:03:23.6]} 21. Qd2 {[%clk
0:03:25]} 21... Ne4 {[%clk 0:03:22]} 22. Bxe4 {[%clk 0:03:22.2]} 22... dxe4
{[%clk 0:03:20.9]} 23. Reb1 {[%clk 0:02:50.7]} 23... f6 {[%clk 0:03:17.3]} 24.
N5c4 {[%clk 0:02:45]} 24... f5 {[%clk 0:03:10.3]} 25. Nd6 {[%clk 0:02:29.6]}
25... f4 {[%clk 0:03:07.1]} 26. Nec4 {[%clk 0:02:18.6]} 26... Bh6 {[%clk
0:02:40]} 27. Qe2 {[%clk 0:01:49]} 27... e3 {[%clk 0:02:33.6]} 28. Nxc8 {[%clk
0:01:44.9]} 28... Qxc8 {[%clk 0:02:31.1]} 29. Ne5 {[%clk 0:01:09.9]} 29... Qxc3
{[%clk 0:02:25.4]} 30. f3 {[%clk 0:00:58.6]} 30... Qxd4 {[%clk 0:02:23]} 31. Rd1
{[%clk 0:00:55.9]} 31... Qxe5 {[%clk 0:02:21.5]} 32. Rab1 {[%clk 0:00:41.6]}
32... Rc8 {[%clk 0:02:00.9]} 33. Rb3 {[%clk 0:00:15.1]} 33... Rc5 {[%clk
0:01:57.9]} 0-1

[Event "Live Chess"]
[Site "Chess.com"]
[Date "2023.05.20"]
[Round "-"]
[White "Stanbad1"]
[Black "bristolunichess"]
[Result "1-0"]
[WhiteElo "2422"]
[BlackElo "1810"]
[TimeControl "300"]
[EndTime "13:19:16 PDT"]
[Termination "Stanbad1 won by resignation"]

1. d4 {[%clk 0:04:58.8]} 1... Nf6 {[%clk 0:04:58.3]} 2. Bg5 {[%clk 0:04:57.9]}
2... d6 {[%clk 0:04:57.1]} 3. Bxf6 {[%clk 0:04:53.4]} 3... exf6 {[%clk
0:04:54.4]} 4. c4 {[%clk 0:04:53.3]} 4... Be7 {[%clk 0:04:52.3]} 5. Nc3 {[%clk
0:04:51.6]} 5... O-O {[%clk 0:04:50.9]} 6. e3 {[%clk 0:04:50.2]} 6... c6 {[%clk
0:04:49.2]} 7. g3 {[%clk 0:04:49.6]} 7... h6 {[%clk 0:04:44.9]} 8. Bg2 {[%clk
0:04:48.6]} 8... Bf5 {[%clk 0:04:43.3]} 9. Nge2 {[%clk 0:04:47.1]} 9... Re8
{[%clk 0:04:35.7]} 10. O-O {[%clk 0:04:38.8]} 10... Na6 {[%clk 0:04:30.5]} 11.
Qb3 {[%clk 0:04:33.1]} 11... Qc7 {[%clk 0:04:24.8]} 12. h3 {[%clk 0:04:26.6]}
12... Bf8 {[%clk 0:04:18.2]} 13. Rfd1 {[%clk 0:04:23.2]} 13... Rad8 {[%clk
0:04:13.8]} 14. g4 {[%clk 0:04:19.2]} 14... Bg6 {[%clk 0:04:12.4]} 15. Nf4
{[%clk 0:04:15.6]} 15... Bh7 {[%clk 0:04:09.1]} 16. d5 {[%clk 0:04:13.2]} 16...
Nc5 {[%clk 0:04:06.1]} 17. Qa3 {[%clk 0:04:10.2]} 17... Qb6 {[%clk 0:03:52.2]}
18. b4 {[%clk 0:04:05.9]} 18... Ne4 {[%clk 0:03:40.2]} 19. dxc6 {[%clk
0:03:55.8]} 19... Nxf2 {[%clk 0:03:22.4]} 20. Ncd5 {[%clk 0:03:46.5]} 20... Qa6
{[%clk 0:02:13.9]} 21. Qxa6 {[%clk 0:03:42.8]} 21... bxa6 {[%clk 0:02:12.8]} 22.
Kxf2 {[%clk 0:03:42.4]} 22... Be4 {[%clk 0:02:06.4]} 23. Bxe4 {[%clk 0:03:38.6]}
23... Rxe4 {[%clk 0:02:05.2]} 24. Rac1 {[%clk 0:03:37.9]} 24... Rc8 {[%clk
0:02:03.3]} 25. b5 {[%clk 0:03:35.8]} 25... axb5 {[%clk 0:01:58.4]} 26. cxb5
{[%clk 0:03:35.7]} 26... Ra4 {[%clk 0:01:54.8]} 27. Rc2 {[%clk 0:03:34]} 27...
a6 {[%clk 0:01:46.7]} 28. Nb6 {[%clk 0:03:30.4]} 28... Rxf4+ {[%clk 0:01:29.3]}
29. exf4 {[%clk 0:03:27.4]} 29... Rc7 {[%clk 0:01:28.6]} 30. Nd5 {[%clk
0:03:25.9]} 30... Rc8 {[%clk 0:01:27.6]} 31. b6 {[%clk 0:03:25.8]} 1-0

[Event "Live Chess"]
[Site "Chess.com"]
[Date "2023.05.20"]
[Round "-"]
[White "OSmith06"]
[Black "TheSmoulderingMaster"]
[Result "0-1"]
[WhiteElo "1653"]
[BlackElo "1745"]
[TimeControl "300"]
[EndTime "13:19:22 PDT"]
[Termination "TheSmoulderingMaster won by resignation"]

1. e4 {[%clk 0:04:57.2]} 1... c5 {[%clk 0:04:58.8]} 2. Nf3 {[%clk 0:04:55.5]}
2... d6 {[%clk 0:04:58.2]} 3. d4 {[%clk 0:04:55.4]} 3... cxd4 {[%clk 0:04:57.5]}
4. Nxd4 {[%clk 0:04:55.3]} 4... Nf6 {[%clk 0:04:56.9]} 5. Nc3 {[%clk 0:04:53.4]}
5... g6 {[%clk 0:04:56.2]} 6. Be3 {[%clk 0:04:53]} 6... Bg7 {[%clk 0:04:55.6]}
7. f3 {[%clk 0:04:52.5]} 7... O-O {[%clk 0:04:54.6]} 8. Qd2 {[%clk 0:04:52.1]}
8... Nc6 {[%clk 0:04:53.3]} 9. g4 {[%clk 0:04:51.3]} 9... Ne5 {[%clk 0:04:51]}
10. Be2 {[%clk 0:04:49.3]} 10... Be6 {[%clk 0:04:48.2]} 11. Nxe6 {[%clk
0:04:46.6]} 11... fxe6 {[%clk 0:04:47.4]} 12. g5 {[%clk 0:04:43.2]} 12... Nh5
{[%clk 0:04:45.8]} 13. f4 {[%clk 0:04:40.2]} 13... Nc6 {[%clk 0:04:35.9]} 14.
Bxh5 {[%clk 0:04:35.7]} 14... gxh5 {[%clk 0:04:35.8]} 15. h4 {[%clk 0:04:21.6]}
15... Qa5 {[%clk 0:04:34]} 16. a3 {[%clk 0:04:15.5]} 16... e5 {[%clk 0:04:28.2]}
17. f5 {[%clk 0:04:12.7]} 17... Nd4 {[%clk 0:04:26.1]} 18. O-O-O {[%clk
0:03:57.9]} 18... Rac8 {[%clk 0:04:20.2]} 19. Bxd4 {[%clk 0:03:52.5]} 19... exd4
{[%clk 0:04:18.9]} 20. Nd5 {[%clk 0:03:50.9]} 20... Qb5 {[%clk 0:04:08.4]} 21.
Nxe7+ {[%clk 0:03:45.6]} 21... Kh8 {[%clk 0:04:07.8]} 22. Nxc8 {[%clk
0:03:38.9]} 22... Rxc8 {[%clk 0:04:05.3]} 23. f6 {[%clk 0:03:38.1]} 23... Bf8
{[%clk 0:04:03.1]} 24. Qxd4 {[%clk 0:03:34.8]} 24... Qb3 {[%clk 0:03:54.4]} 25.
Qd3 {[%clk 0:03:11]} 25... Qa2 {[%clk 0:03:50.8]} 26. Qd4 {[%clk 0:02:46.5]}
26... Qb3 {[%clk 0:03:45]} 27. c3 {[%clk 0:02:42.7]} 27... Rc4 {[%clk
0:03:39.9]} 28. Qd3 {[%clk 0:02:25.9]} 28... d5 {[%clk 0:03:37.3]} 29. exd5
{[%clk 0:02:22.6]} 29... Bxa3 {[%clk 0:03:34.9]} 30. Rd2 {[%clk 0:01:44.1]}
30... Rxc3+ {[%clk 0:03:32.3]} 31. Rc2 {[%clk 0:01:39.6]} 31... Qxb2+ {[%clk
0:03:18.5]} 32. Kd2 {[%clk 0:01:34.6]} 32... Rxd3+ {[%clk 0:03:16.1]} 33. Kxd3
{[%clk 0:01:32.4]} 33... Qb3+ {[%clk 0:03:13.3]} 34. Rc3 {[%clk 0:01:26.6]}
34... Qxd5+ {[%clk 0:03:11.7]} 35. Kc2 {[%clk 0:01:25.3]} 35... Qe4+ {[%clk
0:03:08.8]} 36. Kb3 {[%clk 0:01:20.7]} 36... Qb4+ {[%clk 0:03:06.3]} 37. Kc2
{[%clk 0:01:19]} 37... Qb2+ {[%clk 0:03:03.1]} 38. Kd3 {[%clk 0:01:17.1]} 38...
Qb5+ {[%clk 0:02:58.8]} 39. Kc2 {[%clk 0:01:13.4]} 39... Qf5+ {[%clk 0:02:55.7]}
40. Kb3 {[%clk 0:01:10.7]} 40... Bd6 {[%clk 0:02:47.8]} 41. Rhc1 {[%clk
0:01:04.1]} 41... Qd5+ {[%clk 0:02:42.5]} 42. Kb2 {[%clk 0:01:00.5]} 42... Be5
{[%clk 0:02:41.4]} 43. Kb1 {[%clk 0:00:51.1]} 43... Qb5+ {[%clk 0:02:35.9]} 44.
Ka2 {[%clk 0:00:46.5]} 44... Bxc3 {[%clk 0:02:28.2]} 45. Rxc3 {[%clk 0:00:46.4]}
45... Qa4+ {[%clk 0:02:26]} 46. Kb2 {[%clk 0:00:44.4]} 46... Qd4 {[%clk
0:02:22.5]} 47. Kb3 {[%clk 0:00:43.2]} 47... Qd5+ {[%clk 0:02:18.7]} 48. Rc4
{[%clk 0:00:42.5]} 48... b5 {[%clk 0:02:16.6]} 49. f7 {[%clk 0:00:38.9]} 0-1

[Event "Live Chess"]
[Site "Chess.com"]
[Date "2023.05.20"]
[Round "-"]
[White "Nazar_777"]
[Black "noobsmoker24"]
[Result "1-0"]
[WhiteElo "1579"]
[BlackElo "1359"]
[TimeControl "300"]
[EndTime "13:19:22 PDT"]
[Termination "Nazar_777 won by checkmate"]

1. e3 {[%clk 0:04:51.3]} 1... e5 {[%clk 0:04:58.2]} 2. h4 {[%clk 0:04:50.8]}
2... d5 {[%clk 0:04:57]} 3. a3 {[%clk 0:04:50.2]} 3... c5 {[%clk 0:04:54]} 4. c4
{[%clk 0:04:49.6]} 4... Nf6 {[%clk 0:04:52]} 5. cxd5 {[%clk 0:04:48.7]} 5...
Nxd5 {[%clk 0:04:51]} 6. Nc3 {[%clk 0:04:48.1]} 6... Nc6 {[%clk 0:04:49.8]} 7.
Be2 {[%clk 0:04:47.3]} 7... Be6 {[%clk 0:04:47.7]} 8. Qc2 {[%clk 0:04:46.5]}
8... Be7 {[%clk 0:04:43.7]} 9. Nf3 {[%clk 0:04:45.4]} 9... O-O {[%clk
0:04:41.8]} 10. Ng5 {[%clk 0:04:44.4]} 10... Qd7 {[%clk 0:04:37.1]} 11. Qxh7#
{[%clk 0:04:36.3]} 1-0

[Event "Live Chess"]
[Site "Chess.com"]
[Date "2023.05.20"]
[Round "-"]
[White "McSlash1"]
[Black "luckywookie"]
[Result "1-0"]
[WhiteElo "2045"]
[BlackElo "744"]
[TimeControl "300"]
[EndTime "13:20:00 PDT"]
[Termination "McSlash1 won by resignation"]

1. e4 {[%clk 0:04:57.7]} 1... c6 {[%clk 0:04:57.5]} 2. d4 {[%clk 0:04:56.8]}
2... d5 {[%clk 0:04:56.5]} 3. Nd2 {[%clk 0:04:56.2]} 3... c5 {[%clk 0:04:47.6]}
4. exd5 {[%clk 0:04:42.4]} 4... cxd4 {[%clk 0:04:46.5]} 5. Bc4 {[%clk
0:04:37.8]} 5... e6 {[%clk 0:04:38.4]} 6. dxe6 {[%clk 0:04:35.8]} 6... Bxe6
{[%clk 0:04:37.2]} 7. Ngf3 {[%clk 0:04:33.9]} 7... Bxc4 {[%clk 0:04:32.1]} 8.
Nxc4 {[%clk 0:04:33.8]} 8... Nc6 {[%clk 0:04:29.2]} 9. O-O {[%clk 0:04:32.7]}
9... Be7 {[%clk 0:04:21]} 10. Re1 {[%clk 0:04:32.2]} 10... Nf6 {[%clk
0:04:19.3]} 11. Nce5 {[%clk 0:04:31.5]} 11... Nxe5 {[%clk 0:04:13.5]} 12. Rxe5
{[%clk 0:04:31.4]} 12... O-O {[%clk 0:04:08.1]} 13. Qxd4 {[%clk 0:04:28.4]}
13... Re8 {[%clk 0:04:00.8]} 14. Qxd8 {[%clk 0:04:26.8]} 14... Raxd8 {[%clk
0:03:59.2]} 15. Bg5 {[%clk 0:04:25.6]} 15... b6 {[%clk 0:03:45.4]} 16. Rae1
{[%clk 0:04:23.1]} 16... Rd6 {[%clk 0:03:34.9]} 17. Rxe7 {[%clk 0:04:18.2]}
17... Re6 {[%clk 0:03:21.9]} 18. Rxe8+ {[%clk 0:04:13.9]} 18... Nxe8 {[%clk
0:03:20.6]} 19. Rxe6 {[%clk 0:04:12.6]} 19... fxe6 {[%clk 0:03:19]} 20. Nd4
{[%clk 0:04:12]} 20... Kf7 {[%clk 0:03:16.1]} 21. Be3 {[%clk 0:04:10.9]} 21...
Nd6 {[%clk 0:03:14.9]} 22. Nc6 {[%clk 0:04:09.3]} 22... a5 {[%clk 0:03:13.1]}
23. Bxb6 {[%clk 0:04:06.2]} 23... Kf6 {[%clk 0:03:09.3]} 24. Bxa5 {[%clk
0:04:05]} 24... e5 {[%clk 0:03:04.4]} 25. Bc3 {[%clk 0:04:02.9]} 25... Nf7
{[%clk 0:02:57]} 26. a4 {[%clk 0:04:00.8]} 26... Ke6 {[%clk 0:02:54.3]} 27. a5
{[%clk 0:03:58.4]} 27... Kd5 {[%clk 0:02:53.6]} 28. Nb4+ {[%clk 0:03:57.4]}
28... Kc4 {[%clk 0:02:51.8]} 29. a6 {[%clk 0:03:56.1]} 29... Nd6 {[%clk
0:02:45.8]} 30. a7 {[%clk 0:03:55]} 30... Nb5 {[%clk 0:02:42]} 31. a8=Q {[%clk
0:03:52]} 1-0

[Event "Live Chess"]
[Site "Chess.com"]
[Date "2023.05.20"]
[Round "-"]
[White "ameetghasi100"]
[Black "diana21strabt"]
[Result "1-0"]
[WhiteElo "2686"]
[BlackElo "1683"]
[TimeControl "300"]
[EndTime "13:20:03 PDT"]
[Termination "ameetghasi100 won by resignation"]

1. d4 {[%clk 0:04:59.1]} 1... Nf6 {[%clk 0:04:58.7]} 2. Bg5 {[%clk 0:04:57.1]}
2... Ne4 {[%clk 0:04:56.5]} 3. Bf4 {[%clk 0:04:56]} 3... g5 {[%clk 0:04:51.3]}
4. Bc1 {[%clk 0:04:54.5]} 4... d5 {[%clk 0:04:48.7]} 5. c4 {[%clk 0:04:52.5]}
5... dxc4 {[%clk 0:04:45.2]} 6. Nc3 {[%clk 0:04:50.8]} 6... Nxc3 {[%clk
0:04:41.1]} 7. bxc3 {[%clk 0:04:50.7]} 7... e6 {[%clk 0:04:33.2]} 8. e4 {[%clk
0:04:49.6]} 8... c5 {[%clk 0:04:30.7]} 9. Bxc4 {[%clk 0:04:44.7]} 9... cxd4
{[%clk 0:04:27.3]} 10. cxd4 {[%clk 0:04:42.9]} 10... Bb4+ {[%clk 0:04:24.8]} 11.
Bd2 {[%clk 0:04:41.5]} 11... Qa5 {[%clk 0:04:23.5]} 12. Nf3 {[%clk 0:04:37.8]}
12... g4 {[%clk 0:04:20.5]} 13. Bxb4 {[%clk 0:04:36.4]} 13... Qxb4+ {[%clk
0:04:19]} 14. Nd2 {[%clk 0:04:36]} 14... Nc6 {[%clk 0:04:12.6]} 15. O-O {[%clk
0:04:31]} 15... Qd6 {[%clk 0:04:07]} 16. d5 {[%clk 0:04:23.3]} 16... Qxh2+
{[%clk 0:04:05.6]} 17. Kxh2 {[%clk 0:04:21.3]} 1-0

[Event "Live Chess"]
[Site "Chess.com"]
[Date "2023.05.20"]
[Round "-"]
[White "Tilbs_12"]
[Black "LodeshChess"]
[Result "0-1"]
[WhiteElo "1545"]
[BlackElo "1068"]
[TimeControl "300"]
[EndTime "13:20:04 PDT"]
[Termination "LodeshChess won on time"]

1. e4 {[%clk 0:04:59]} 1... c6 {[%clk 0:04:59]} 2. d4 {[%clk 0:04:57.3]} 2... d5
{[%clk 0:04:58.4]} 3. exd5 {[%clk 0:04:56.6]} 3... cxd5 {[%clk 0:04:58]} 4. c4
{[%clk 0:04:55.8]} 4... Nf6 {[%clk 0:04:53]} 5. Nc3 {[%clk 0:04:54.6]} 5... Nc6
{[%clk 0:04:51.1]} 6. Nf3 {[%clk 0:04:51.3]} 6... g6 {[%clk 0:04:44.3]} 7. Bg5
{[%clk 0:04:39.1]} 7... Bg7 {[%clk 0:04:41]} 8. Bxf6 {[%clk 0:04:37.9]} 8...
Bxf6 {[%clk 0:04:39.5]} 9. cxd5 {[%clk 0:04:37.1]} 9... Nb4 {[%clk 0:04:24.6]}
10. a3 {[%clk 0:04:29.8]} 10... Nxd5 {[%clk 0:04:23.5]} 11. Be2 {[%clk
0:04:22.6]} 11... Qa5 {[%clk 0:04:07.4]} 12. Qa4+ {[%clk 0:04:11]} 12... Qxa4
{[%clk 0:04:05.4]} 13. Nxa4 {[%clk 0:04:10.5]} 13... O-O {[%clk 0:03:59.8]} 14.
O-O {[%clk 0:04:08]} 14... Bg4 {[%clk 0:03:57.3]} 15. Rfd1 {[%clk 0:03:29.8]}
15... e6 {[%clk 0:03:50.3]} 16. Nc3 {[%clk 0:03:24.4]} 16... Nxc3 {[%clk
0:03:47.2]} 17. bxc3 {[%clk 0:03:23.3]} 17... Rac8 {[%clk 0:03:46.7]} 18. c4
{[%clk 0:03:14.8]} 18... Bxf3 {[%clk 0:03:38.8]} 19. gxf3 {[%clk 0:03:11.3]}
19... Rfd8 {[%clk 0:03:37.6]} 20. Rab1 {[%clk 0:03:01.9]} 20... b6 {[%clk
0:03:33.5]} 21. d5 {[%clk 0:02:56.7]} 21... exd5 {[%clk 0:03:30.1]} 22. cxd5
{[%clk 0:02:55.3]} 22... Rc5 {[%clk 0:03:20.6]} 23. d6 {[%clk 0:02:35.5]} 23...
Rg5+ {[%clk 0:03:16.7]} 24. Kf1 {[%clk 0:02:26.3]} 24... Be5 {[%clk 0:03:06.5]}
25. Rd5 {[%clk 0:02:04]} 25... Rxd6 {[%clk 0:02:53.7]} 26. Rxd6 {[%clk
0:01:59.6]} 26... Bxd6 {[%clk 0:02:52.6]} 27. h3 {[%clk 0:01:55.9]} 27... Bh2
{[%clk 0:02:51.6]} 28. Ke1 {[%clk 0:01:47.4]} 28... Rg1+ {[%clk 0:02:50.1]} 29.
Bf1 {[%clk 0:01:46.4]} 29... Be5 {[%clk 0:02:41.9]} 30. Rd1 {[%clk 0:01:37]}
30... Kg7 {[%clk 0:02:27.9]} 31. Rd7 {[%clk 0:01:31.5]} 31... a5 {[%clk
0:02:26.1]} 32. Rd5 {[%clk 0:01:25.7]} 32... Bc3+ {[%clk 0:02:19.9]} 33. Ke2
{[%clk 0:01:24.3]} 33... Bb2 {[%clk 0:02:11.8]} 34. a4 {[%clk 0:01:23]} 34...
Ba3 {[%clk 0:02:08.1]} 35. Rb5 {[%clk 0:01:18.2]} 35... Bc5 {[%clk 0:02:07.1]}
36. Rb3 {[%clk 0:01:15.2]} 36... Rh1 {[%clk 0:02:00.5]} 37. f4 {[%clk
0:01:11.2]} 37... Rh2 {[%clk 0:01:59.6]} 38. Rf3 {[%clk 0:01:09.8]} 38... h5
{[%clk 0:01:48.5]} 39. Ke1 {[%clk 0:01:07.4]} 39... Rh1 {[%clk 0:01:43.5]} 40.
Ke2 {[%clk 0:01:05.9]} 40... Rg1 {[%clk 0:01:39.4]} 41. Rd3 {[%clk 0:00:56.7]}
41... g5 {[%clk 0:01:35.4]} 42. fxg5 {[%clk 0:00:53.3]} 42... Rxg5 {[%clk
0:01:33.6]} 43. Kf3 {[%clk 0:00:48.2]} 43... Rf5+ {[%clk 0:01:30.1]} 44. Ke4
{[%clk 0:00:44.4]} 44... Rxf2 {[%clk 0:01:26.1]} 45. Rg3+ {[%clk 0:00:41.8]}
45... Kh6 {[%clk 0:01:22.3]} 46. Bb5 {[%clk 0:00:40.8]} 46... Rb2 {[%clk
0:01:11.4]} 47. Kd5 {[%clk 0:00:39]} 47... Rd2+ {[%clk 0:00:59.9]} 48. Kc6
{[%clk 0:00:37.9]} 48... Rd6+ {[%clk 0:00:51.2]} 49. Kc7 {[%clk 0:00:35.4]}
49... Rg6 {[%clk 0:00:49.4]} 50. Rf3 {[%clk 0:00:33.2]} 50... f6 {[%clk
0:00:47.3]} 51. Be8 {[%clk 0:00:30.9]} 51... Rg8 {[%clk 0:00:38]} 52. Rxf6+
{[%clk 0:00:29.7]} 52... Kg5 {[%clk 0:00:34.9]} 53. Rf3 {[%clk 0:00:25.2]} 53...
Rxe8 {[%clk 0:00:32.7]} 54. Rg3+ {[%clk 0:00:21.5]} 54... Kh6 {[%clk 0:00:31.3]}
55. Rg2 {[%clk 0:00:18.6]} 55... Re3 {[%clk 0:00:28.4]} 56. h4 {[%clk
0:00:17.5]} 56... Rh3 {[%clk 0:00:27.6]} 57. Rg8 {[%clk 0:00:15.7]} 57... Rxh4
{[%clk 0:00:25]} 58. Rh8+ {[%clk 0:00:15.4]} 58... Kg5 {[%clk 0:00:24.1]} 59.
Kc6 {[%clk 0:00:14.9]} 59... Rxa4 {[%clk 0:00:22.5]} 60. Kb5 {[%clk 0:00:14.4]}
60... Rb4+ {[%clk 0:00:21.5]} 61. Ka6 {[%clk 0:00:13.7]} 61... h4 {[%clk
0:00:20.8]} 62. Rg8+ {[%clk 0:00:12.5]} 62... Kf4 {[%clk 0:00:19.5]} 63. Re8
{[%clk 0:00:11.8]} 63... Kg3 {[%clk 0:00:18.4]} 64. Re1 {[%clk 0:00:11.5]} 64...
h3 {[%clk 0:00:17.1]} 65. Rd1 {[%clk 0:00:10.6]} 65... Kg2 {[%clk 0:00:16.3]}
66. Rd2+ {[%clk 0:00:09.5]} 66... Kg3 {[%clk 0:00:15.1]} 67. Rd3+ {[%clk
0:00:08.5]} 67... Kg4 {[%clk 0:00:13]} 68. Rd8 {[%clk 0:00:06.7]} 68... h2
{[%clk 0:00:11.6]} 69. Rg8+ {[%clk 0:00:06.3]} 69... Kh3 {[%clk 0:00:10.3]} 70.
Rh8+ {[%clk 0:00:05.7]} 70... Kg3 {[%clk 0:00:09]} 71. Rh7 {[%clk 0:00:05.2]}
71... Rh4 {[%clk 0:00:07.6]} 72. Rg7+ {[%clk 0:00:03.9]} 72... Kh3 {[%clk
0:00:06.5]} 73. Rg3+ {[%clk 0:00:01.4]} 73... Kxg3 {[%clk 0:00:05.4]} 74. Kb5
{[%clk 0:00:01]} 74... h1=Q {[%clk 0:00:04.5]} 0-1

[Event "Live Chess"]
[Site "Chess.com"]
[Date "2023.05.20"]
[Round "-"]
[White "ViktorTheCoolBoy"]
[Black "Goblinbasher"]
[Result "1-0"]
[WhiteElo "2502"]
[BlackElo "1217"]
[TimeControl "300"]
[EndTime "13:20:28 PDT"]
[Termination "ViktorTheCoolBoy won by resignation"]

1. d4 {[%clk 0:04:56.4]} 1... f5 {[%clk 0:04:50.4]} 2. c4 {[%clk 0:04:53.8]}
2... Nf6 {[%clk 0:04:48.7]} 3. Nc3 {[%clk 0:04:49]} 3... e6 {[%clk 0:04:47.5]}
4. f3 {[%clk 0:04:47.8]} 4... Bb4 {[%clk 0:04:43.4]} 5. e3 {[%clk 0:04:43.9]}
5... Bxc3+ {[%clk 0:04:41.9]} 6. bxc3 {[%clk 0:04:42.9]} 6... O-O {[%clk
0:04:40.9]} 7. Bd3 {[%clk 0:04:42.1]} 7... d6 {[%clk 0:04:38.6]} 8. Ne2 {[%clk
0:04:41.3]} 8... Qe8 {[%clk 0:04:27.5]} 9. O-O {[%clk 0:04:39.4]} 9... b6 {[%clk
0:04:14.9]} 10. Ng3 {[%clk 0:04:37.6]} 10... Nbd7 {[%clk 0:04:10.6]} 11. a4
{[%clk 0:04:36.5]} 11... a5 {[%clk 0:04:08.5]} 12. e4 {[%clk 0:04:35.6]} 12...
f4 {[%clk 0:04:00.2]} 13. Bxf4 {[%clk 0:04:33.3]} 13... Nh5 {[%clk 0:03:54.4]}
14. Nxh5 {[%clk 0:04:31.5]} 14... Qxh5 {[%clk 0:03:53.2]} 15. Bg3 {[%clk
0:04:31.1]} 15... Nf6 {[%clk 0:03:47.1]} 16. f4 {[%clk 0:04:27.7]} 16... Qxd1
{[%clk 0:03:40.7]} 17. Raxd1 {[%clk 0:04:27.6]} 17... Ng4 {[%clk 0:03:27.6]} 18.
Rde1 {[%clk 0:04:24.8]} 18... Bb7 {[%clk 0:03:18]} 19. h3 {[%clk 0:04:23.5]}
19... Nf6 {[%clk 0:03:13.1]} 20. d5 {[%clk 0:04:21.7]} 20... exd5 {[%clk
0:03:09]} 21. cxd5 {[%clk 0:04:20.6]} 21... Rae8 {[%clk 0:03:04.1]} 22. c4
{[%clk 0:04:19.2]} 22... Nh5 {[%clk 0:02:59.7]} 23. Bh2 {[%clk 0:04:18]} 23...
Bc8 {[%clk 0:02:53.9]} 24. g4 {[%clk 0:04:14.3]} 24... Nf6 {[%clk 0:02:49.5]}
25. e5 {[%clk 0:04:13.5]} 25... Nd7 {[%clk 0:02:45.9]} 26. e6 {[%clk 0:04:12.2]}
26... Nf6 {[%clk 0:02:43]} 27. f5 {[%clk 0:04:04.7]} 27... Re7 {[%clk
0:02:28.7]} 28. Bg3 {[%clk 0:03:59.9]} 28... g5 {[%clk 0:02:12.8]} 29. fxg6
{[%clk 0:03:56.9]} 29... hxg6 {[%clk 0:02:11.8]} 30. Bxg6 {[%clk 0:03:56.4]}
30... Kg7 {[%clk 0:02:07.5]} 31. Bf5 {[%clk 0:03:55.4]} 31... Rh8 {[%clk
0:01:58.5]} 32. Kg2 {[%clk 0:03:52.7]} 32... Rh6 {[%clk 0:01:56.7]} 33. g5
{[%clk 0:03:50.4]} 1-0